bitfinex/quotes_BTCUSD_20260127
["timestamp","ask_amount","ask_price","bid_price","bid_amount"]
[1769550594308,0.0243108,89167.0,89153.0,0.05608316]
[1769550594309,0.11095817,89162.0,89153.0,0.05608316]
[1769550594513,0.0243108,89167.0,89146.0,0.07861162]
[1769550594663,0.0236141,89165.0,89146.0,0.07861162]
[1769550594866,0.11094169,89164.0,89147.0,0.05608713]
[1769550595069,0.11094169,89164.0,89147.0,0.13469875]
[1769550595269,0.0236141,89163.0,89147.0,0.07861162]
[1769550595454,0.11094169,89162.0,89147.0,0.07861162]
[1769550595657,0.11094169,89161.0,89146.0,0.13469909]
[1769550595858,0.11094169,89160.0,89146.0,0.13469909]
[1769550596075,0.0236141,89163.0,89148.0,0.05608618]
[1769550596235,0.11093689,89162.0,89148.0,0.05608618]
[1769550596442,0.11093689,89161.0,89148.0,0.05608618]
[1769550596813,0.11093689,89160.0,89145.0,0.07861162]
[1769550597052,0.0236141,89163.0,89145.0,0.07861162]
[1769550597256,0.11094078,89162.0,89147.0,0.05608684]
[1769550597429,0.11094078,89161.0,89147.0,0.05608684]
[1769550597664,0.37525541,89160.0,89146.0,0.07861162]
[1769550597864,0.11094078,89159.0,89142.0,0.05609]
[1769550598068,0.13637592,89159.0,89142.0,0.05609]
[1769550598281,0.02543514,89159.0,89143.0,0.05608961]
[1769550598687,0.02543514,89159.0,89141.0,0.07861162]
[1769550598833,0.02543514,89157.0,89141.0,0.05609072]
[1769550599038,0.02543514,89155.0,89137.0,0.07861162]
[1769550599231,0.26431463,89160.0,89136.0,0.1154]
[1769550599437,0.11095347,89159.0,89143.0,0.05608902]
[1769550599660,0.26431463,89160.0,89144.0,0.13470006]
[1769550599862,0.11095384,89159.0,89145.0,0.13469964]
[1769550600175,0.26411463,89160.0,89145.0,0.07861162]
[1769550600353,0.11093321,89159.0,89146.0,0.07861162]
[1769550600558,0.02543514,89161.0,89148.0,0.056086]
[1769550600738,0.02543514,89161.0,89146.0,0.13469883]
[1769550600739,0.11093329,89160.0,89146.0,0.13469883]
[1769550600935,0.11093329,89159.0,89146.0,0.13469883]
[1769550601160,0.11094751,89158.0,89146.0,0.05608721]
[1769550601366,0.02543514,89161.0,89147.0,0.13469864]
[1769550601574,0.11094772,89160.0,89147.0,0.07861162]
[1769550601745,0.11094772,89159.0,89147.0,0.07861162]
[1769550601945,0.11094772,89158.0,89147.0,0.07861162]
[1769550602139,0.02543514,89161.0,89147.0,0.07861162]
[1769550602359,0.025,89830.0,89151.0,0.07861162]
[1769550602360,0.08948314,89170.0,89151.0,0.07861162]
[1769550602715,0.08948314,89170.0,89136.0,0.56414846]
[1769550602716,0.03218199,89187.0,89161.0,0.07861162]
[1769550602839,0.03241447,89186.0,89166.0,0.07861162]
[1769550603039,0.08422625,89185.0,89166.0,0.13468679]
[1769550603256,0.03218199,89184.0,89166.0,0.07861162]
[1769550604295,0.03218199,89184.0,89166.0,0.13468678]
[1769550604540,0.03218199,89184.0,89166.0,0.07861162]
[1769550605753,0.03218199,89184.0,89166.0,0.13468636]
[1769550606251,0.03218199,89184.0,89166.0,0.07861162]
[1769550606460,0.03667974,89183.0,89166.0,0.07861162]
[1769550608699,0.03667974,89183.0,89166.0,0.13468652]
[1769550608912,0.03667974,89183.0,89166.0,0.07861162]
[1769550610192,0.03667974,89183.0,89166.0,0.13468669]
[1769550610394,0.03667974,89183.0,89166.0,0.07861162]
[1769550610600,0.03667974,89183.0,89180.0,0.00094935]
[1769550610857,0.26499055,89180.0,89166.0,0.07861162]
[1769550611039,0.26499055,89180.0,89169.0,0.05607286]
[1769550611265,0.00067592,89180.0,89169.0,0.05607286]
[1769550611509,0.26431463,89190.0,89161.0,0.00046871]
[1769550611510,0.00023248,89188.0,89174.0,0.05607004]
[1769550611691,0.04342581,89193.0,89175.0,0.07861162]
[1769550612150,0.1152,89194.0,89175.0,0.13468075]
[1769550612286,0.04366351,89192.0,89177.0,0.05606823]
[1769550612483,0.13314665,89192.0,89175.0,0.07861162]
[1769550613269,0.26431463,89190.0,89175.0,0.07861162]
[1769550613661,0.26431463,89190.0,89175.0,0.07749146]
[1769550613868,0.26431463,89190.0,89175.0,0.13356087]
[1769550614491,0.26431463,89190.0,89175.0,0.07749146]
[1769550614694,0.11122499,89189.0,89175.0,0.07749146]
[1769550614912,0.11122499,89188.0,89175.0,0.07749146]
[1769550615134,0.11122499,89187.0,89141.0,0.4487223]
[1769550615347,0.08422625,89184.0,89166.0,0.05607474]
[1769550615537,0.15689969,89183.0,89168.0,0.05607361]
[1769550615745,0.26431463,89180.0,89164.0,0.0560759]
[1769550615958,0.26431463,89180.0,89164.0,0.05607617]
[1769550616156,0.08972084,89192.0,89161.0,0.11566871]
[1769550616157,0.26431463,89174.0,89161.0,0.00046871]
[1769550616356,0.26431463,89174.0,89152.0,0.06142701]
[1769550616357,0.04792363,89162.0,89152.0,0.06142701]
[1769550616581,0.04839205,89162.0,89147.0,0.05608681]
[1769550616781,0.13214988,89161.0,89144.0,0.05608894]
[1769550616938,0.13214988,89161.0,89147.0,0.05608674]
[1769550617142,0.13214988,89161.0,89148.0,0.05608614]
[1769550617345,0.13214988,89161.0,89142.0,0.07861162]
[1769550617554,0.13214988,89161.0,89147.0,0.05608702]
[1769550617754,0.13214988,89161.0,89148.0,0.05608623]
[1769550617955,0.13214988,89161.0,89146.0,0.05608757]
[1769550618773,0.13214988,89161.0,89147.0,0.05608699]
[1769550618942,0.12987337,89161.0,89147.0,0.05608699]
[1769550619715,0.26466514,89160.0,89142.0,0.07861162]
[1769550619921,0.00031889,89158.0,89143.0,0.0560894]
[1769550620135,0.00031889,89158.0,89144.0,0.0560886]
[1769550621323,0.05001319,89155.0,89143.0,0.05608913]
[1769550621744,0.05001319,89155.0,89135.0,0.07875472]
[1769550621745,0.05001319,89155.0,89141.0,0.05609067]
[1769550621955,0.05001319,89153.0,89137.0,0.05609334]
[1769550622141,0.05001319,89152.0,89137.0,0.05609337]
[1769550622606,0.05001319,89152.0,89136.0,0.0002]
[1769550622825,0.05001319,89150.0,89136.0,0.0002]
[1769550623040,0.08422625,89149.0,89136.0,0.0002]
[1769550623268,0.05001319,89148.0,89136.0,0.0002]
[1769550623521,0.05001319,89146.0,89136.0,0.0002]
[1769550624681,0.0790593,89147.0,89136.0,0.0002]
[1769550624682,0.05001319,89144.0,89136.0,0.0002]
[1769550624915,0.05001319,89141.0,89129.0,0.05609818]
[1769550625117,0.13335885,89141.0,89124.0,0.09383117]
[1769550625329,0.13335885,89141.0,89124.0,0.09383122]
[1769550625542,0.13335885,89141.0,89124.0,0.09383029]
[1769550625752,0.1152,89159.0,89125.0,0.05610095]
[1769550625938,0.05001319,89147.0,89125.0,0.05610083]
[1769550626141,0.08334566,89144.0,89125.0,0.05610083]
[1769550626287,0.26466514,89150.0,89124.0,0.09383099]
[1769550626288,0.08334566,89140.0,89124.0,0.09383099]
[1769550626468,0.05001319,89139.0,89125.0,0.05610078]
[1769550626678,0.05001319,89139.0,89125.0,0.05610087]
[1769550626880,0.05001319,89139.0,89126.0,0.0560998]
[1769550627129,0.05001319,89146.0,89127.0,0.05669812]
[1769550627329,0.26466514,89150.0,89127.0,0.0005988]
[1769550627330,0.05001319,89144.0,89127.0,0.0005988]
[1769550627729,0.04776401,89143.0,89127.0,0.0005988]
[1769550627953,0.13110967,89143.0,89127.0,0.0005988]
[1769550628268,0.13110967,89143.0,89127.0,0.0566985]
[1769550628469,0.13110967,89143.0,89127.0,0.0005988]
[1769550628696,0.26466514,89140.0,89127.0,0.0005988]
[1769550628815,0.08334566,89136.0,89127.0,0.0005988]
[1769550629026,0.04776401,89135.0,89127.0,0.0005988]
[1769550629706,0.00031889,89142.0,89128.0,0.05609882]
[1769550629929,0.00031889,89142.0,89128.0,0.05609909]
[1769550630209,0.00078731,89142.0,89128.0,0.05609909]
[1769550630410,0.00078731,89142.0,89127.0,0.08071388]
[1769550630633,0.00078731,89142.0,89132.0,0.05609611]
[1769550631110,0.00078731,89142.0,89131.0,0.0560972]
[1769550631748,0.08334566,89162.0,89131.0,0.08011508]
[1769550631940,0.04551496,89159.0,89142.0,0.00027342]
[1769550632116,0.08334566,89156.0,89135.0,0.05609431]
[1769550632317,0.04551496,89153.0,89137.0,0.05609312]
[1769550632558,0.04551496,89152.0,89135.0,0.05609429]
[1769550632966,0.04551496,89151.0,89134.0,0.05609472]
[1769550633315,0.04551496,89151.0,89135.0,0.05609443]
[1769550633836,0.04551496,89151.0,89136.0,0.05609391]
[1769550634035,0.04551496,89151.0,89135.0,0.05609443]
[1769550634218,0.26466514,89145.0,89131.0,0.00046842]
[1769550634419,0.26466514,89150.0,89131.0,0.05656534]
[1769550634624,0.30793112,89150.0,89133.0,0.05609547]
[1769550634820,0.30793112,89150.0,89136.0,0.05609363]
[1769550635046,0.04326598,89150.0,89136.0,0.05609363]
[1769550635405,0.04326598,89150.0,89131.0,0.0805835]
[1769550635718,0.26466514,89160.0,89136.0,0.05609376]
[1769550635719,0.08334566,89155.0,89136.0,0.05609376]
[1769550635932,0.12436271,89155.0,89136.0,0.05609374]
[1769550636137,0.12436271,89155.0,89137.0,0.0560934]
[1769550636937,0.04101705,89154.0,89136.0,0.08011508]
[1769550637138,0.04101705,89154.0,89139.0,0.05609205]
[1769550637473,0.04101705,89154.0,89140.0,0.05609128]
[1769550637677,0.04101705,89154.0,89140.0,0.05609141]
[1769550637879,0.00023248,89159.0,89140.0,0.26466514]
[1769550638095,0.11524,89164.0,89141.0,0.08011508]
[1769550638096,0.04101705,89163.0,89141.0,0.08011508]
[1769550638240,0.04101705,89163.0,89152.0,0.05608368]
[1769550638645,0.08334566,89167.0,89152.0,0.05608385]
[1769550638841,0.11096336,89166.0,89152.0,0.05608385]
[1769550639041,0.11096336,89165.0,89150.0,0.05608463]
[1769550639243,0.11096336,89164.0,89145.0,0.05608817]
[1769550639446,0.00023248,89169.0,89146.0,0.0560873]
[1769550639681,0.08334566,89167.0,89144.0,0.05608875]
[1769550639860,0.26466514,89160.0,89139.0,0.08011508]
[1769550640064,0.26466514,89150.0,89135.0,0.05609468]
[1769550640235,0.30568219,89150.0,89134.0,0.11524]
[1769550640433,0.04101705,89150.0,89134.0,0.11524]
[1769550640939,0.04101705,89150.0,89138.0,0.05609237]
[1769550641134,0.04101705,89150.0,89139.0,0.05609216]
[1769550641343,0.04101705,89150.0,89143.0,0.05608934]
[1769550641545,0.04101705,89150.0,89143.0,0.05608938]
[1769550641746,0.04101705,89150.0,89141.0,0.05609053]
[1769550641986,0.04101705,89150.0,89139.0,0.05609177]
[1769550642380,0.04101705,89150.0,89136.0,0.0560937]
[1769550642582,0.08334566,89150.0,89133.0,0.08011508]
[1769550642793,0.26466514,89160.0,89135.0,0.05609464]
[1769550642794,0.04101705,89147.0,89135.0,0.05609464]
[1769550642995,0.12436271,89147.0,89133.0,0.05609544]
[1769550643204,0.12436271,89147.0,89132.0,0.22438582]
[1769550643535,0.04101705,89144.0,89133.0,0.0560957]
[1769550643666,0.04101705,89143.0,89134.0,0.05609488]
[1769550643868,0.04101705,89143.0,89136.0,0.05609361]
[1769550644092,0.04101705,89143.0,89135.0,0.05609446]
[1769550644499,0.04101705,89143.0,89133.0,0.05609539]
[1769550644500,0.04101705,89143.0,89134.0,0.05609492]
[1769550646077,0.04101705,89143.0,89131.0,0.00046842]
[1769550646273,0.08971562,89159.0,89137.0,0.0560932]
[1769550646524,0.08334566,89156.0,89137.0,0.0560932]
[1769550646686,0.04101705,89153.0,89137.0,0.0560932]
[1769550646891,0.04101705,89149.0,89137.0,0.0560932]
[1769550647134,0.04101705,89148.0,89136.0,0.05609404]
[1769550647341,0.00023248,89158.0,89139.0,0.08011508]
[1769550647682,0.04101705,89161.0,89138.0,0.26466514]
[1769550647683,0.11126853,89157.0,89145.0,0.08011508]
[1769550647802,0.04101705,89161.0,89145.0,0.05608799]
[1769550647803,0.11126853,89156.0,89145.0,0.05608799]
[1769550648002,0.11126853,89155.0,89145.0,0.05608799]
[1769550648205,0.11126853,89154.0,89143.0,0.0560893]
[1769550648407,0.11126853,89153.0,89143.0,0.0560893]
[1769550648614,0.03876802,89159.0,89142.0,0.05609021]
[1769550648815,0.15003623,89158.0,89142.0,0.05609021]
[1769550649021,0.11126821,89157.0,89143.0,0.05608954]
[1769550649241,0.03876802,89158.0,89143.0,0.05608954]
[1769550649242,0.11126821,89156.0,89143.0,0.05608954]
[1769550649447,0.03876802,89158.0,89144.0,0.0560888]
[1769550649448,0.11126821,89155.0,89144.0,0.0560888]
[1769550649651,0.11126821,89154.0,89144.0,0.0560888]
[1769550649829,0.11126821,89153.0,89140.0,0.05609154]
[1769550650032,0.03876802,89158.0,89143.0,0.05608919]
[1769550650237,0.11129579,89157.0,89143.0,0.05608919]
[1769550650502,0.11129579,89156.0,89144.0,0.05608888]
[1769550650801,0.11129579,89155.0,89145.0,0.05608835]
[1769550651015,0.11129579,89154.0,89139.0,0.08011508]
[1769550651230,0.11039258,89153.0,89138.0,0.26466514]
[1769550651417,0.11039258,89153.0,89134.0,0.11524]
[1769550651418,0.11039258,89153.0,89152.0,0.05608399]
[1769550651618,0.03876802,89164.0,89151.0,0.05608403]
[1769550652025,0.03876802,89164.0,89145.0,0.08011508]
[1769550652230,0.03876802,89163.0,89150.0,0.05608478]
[1769550652430,0.03876802,89163.0,89146.0,0.05608776]
[1769550652606,0.03876802,89163.0,89149.0,0.05608549]
[1769550653109,0.03876802,89163.0,89150.0,0.05608474]
[1769550653307,0.03876802,89163.0,89151.0,0.05608459]
[1769550653512,0.03876802,89163.0,89150.0,0.05608474]
[1769550654324,0.03876802,89163.0,89145.0,0.08011508]
[1769550654499,0.03876802,89163.0,89148.0,0.05608622]
[1769550654719,0.03876802,89163.0,89149.0,0.05608571]
[1769550654922,0.03876802,89163.0,89153.0,0.05608297]
[1769550655102,0.03876802,89163.0,89152.0,0.0560834]
[1769550655305,0.03876802,89163.0,89153.0,0.05608331]
[1769550655906,0.03876802,89163.0,89154.0,0.05608268]
[1769550656107,0.03876802,89163.0,89153.0,0.05608331]
[1769550657130,0.03876802,89163.0,89149.0,0.08645574]
[1769550657303,0.12097838,89162.0,89141.0,0.08645574]
[1769550657476,0.12097838,89162.0,89146.0,0.05608718]
[1769550657659,0.03876802,89161.0,89148.0,0.05608591]
[1769550657862,0.03876802,89161.0,89149.0,0.05608585]
[1769550658286,0.03876802,89161.0,89147.0,0.05608673]
[1769550658479,0.03876802,89161.0,89148.0,0.05608621]
[1769550658697,0.03876802,89161.0,89148.0,0.0560865]
[1769550659125,0.03870803,89161.0,89148.0,0.0560865]
[1769550659456,0.03870803,89161.0,89143.0,0.08645574]
[1769550659653,0.08221036,89160.0,89144.0,0.05608847]
[1769550659892,0.12094839,89160.0,89144.0,0.05608847]
[1769550660160,0.12094839,89160.0,89145.0,0.05608833]
[1769550660359,0.12094839,89160.0,89146.0,0.05608757]
[1769550660815,0.12094839,89160.0,89143.0,0.08645574]
[1769550661158,0.38561353,89160.0,89143.0,0.08645574]
[1769550661305,0.26466514,89160.0,89142.0,0.05608994]
[1769550661525,0.08948314,89168.0,89142.0,0.05608994]
[1769550661924,0.12094839,89167.0,89142.0,0.05608984]
[1769550662271,0.03873803,89162.0,89143.0,0.05608964]
[1769550662502,0.03873803,89160.0,89144.0,0.05608865]
[1769550662710,0.03873803,89160.0,89145.0,0.05608832]
[1769550662916,0.03873803,89160.0,89146.0,0.05608775]
[1769550663099,0.03873803,89160.0,89141.0,0.08645574]
[1769550663276,0.03873803,89168.0,89160.0,0.00027342]
[1769550663474,0.03873803,89168.0,89152.0,0.05608373]
[1769550663475,0.11119997,89167.0,89152.0,0.05608373]
[1769550663673,0.11119997,89166.0,89152.0,0.05608373]
[1769550663842,0.11119997,89165.0,89152.0,0.05608373]
[1769550664047,0.11119997,89164.0,89151.0,0.08645574]
[1769550664354,0.11119997,89163.0,89151.0,0.14254011]
[1769550664579,0.11119997,89162.0,89151.0,0.14258747]
[1769550664789,0.03873803,89168.0,89152.0,0.05608363]
[1769550664996,0.14994091,89167.0,89151.0,0.0865031]
[1769550665224,0.11120288,89166.0,89151.0,0.0865031]
[1769550665378,0.11120288,89165.0,89151.0,0.0865031]
[1769550665716,0.11120288,89164.0,89151.0,0.0865031]
[1769550665921,0.11120288,89163.0,89151.0,0.0865031]
[1769550666126,0.03873803,89167.0,89151.0,0.0865031]
[1769550668528,0.0384248,89167.0,89151.0,0.0865031]
[1769550674509,0.08221036,89167.0,89151.0,0.0865031]
[1769550674653,0.03858141,89166.0,89151.0,0.0865031]
[1769550676118,0.03858141,89166.0,89151.0,0.14258758]
[1769550677234,0.03858141,89166.0,89151.0,0.0865031]
[1769550678149,0.11124837,89165.0,89151.0,0.14258745]
[1769550678348,0.11124837,89164.0,89151.0,0.14258745]
[1769550678718,0.11124837,89163.0,89152.0,0.05608384]
[1769550678885,0.11124837,89162.0,89152.0,0.05608384]
[1769550679066,0.11124837,89161.0,89152.0,0.05608384]
[1769550679274,0.11124837,89160.0,89152.0,0.05608384]
[1769550679477,0.03858141,89166.0,89152.0,0.05608384]
[1769550679699,0.11128182,89165.0,89152.0,0.05608384]
[1769550679886,0.11128182,89164.0,89152.0,0.05608384]
[1769550680152,0.11128182,89163.0,89152.0,0.05608384]
[1769550680306,0.11128182,89162.0,89152.0,0.05608384]
[1769550680513,0.11128182,89161.0,89152.0,0.05608384]
[1769550680712,0.11128182,89160.0,89152.0,0.05608384]
[1769550680933,0.11128182,89159.0,89152.0,0.05608384]
[1769550681136,0.111322,89158.0,89152.0,0.05608384]
[1769550681333,0.04083021,89166.0,89152.0,0.05608384]
[1769550681514,0.11132392,89165.0,89152.0,0.05608384]
[1769550681718,0.11132392,89164.0,89152.0,0.05608384]
[1769550681920,0.11132392,89163.0,89152.0,0.05608384]
[1769550682117,0.11132392,89162.0,89152.0,0.05608384]
[1769550682300,0.11132392,89161.0,89151.0,4.736e-05]
[1769550682514,0.23661345,89160.0,89151.0,4.736e-05]
[1769550682716,0.11132392,89159.0,89151.0,4.736e-05]
[1769550683952,0.11132392,89159.0,89151.0,0.05613197]
[1769550684156,0.11132392,89159.0,89151.0,4.736e-05]
[1769550684347,0.11132392,89159.0,89151.0,0.05613186]
[1769550684554,0.11132392,89159.0,89151.0,4.736e-05]
[1769550684769,0.11132392,89159.0,89151.0,0.05613197]
[1769550684944,0.11132392,89159.0,89151.0,4.736e-05]
[1769550687853,0.11132392,89159.0,89151.0,0.05613164]
[1769550688322,0.11132392,89159.0,89151.0,4.736e-05]
[1769550689228,0.11132392,89159.0,89151.0,0.05613165]
[1769550689829,0.11132392,89159.0,89152.0,0.05608385]
[1769550690043,0.11132392,89159.0,89152.0,0.05608394]
[1769550690400,0.11132392,89159.0,89151.0,0.05613148]
[1769550690600,0.11132392,89159.0,89151.0,4.736e-05]
[1769550692408,0.11132392,89158.0,89151.0,4.736e-05]
[1769550692651,0.11132392,89157.0,89151.0,4.736e-05]
[1769550692848,0.04307917,89160.0,89151.0,4.736e-05]
[1769550693115,0.11138177,89159.0,89151.0,4.736e-05]
[1769550693318,0.11138177,89158.0,89151.0,4.736e-05]
[1769550693524,0.11138177,89157.0,89151.0,4.736e-05]
[1769550693739,0.04307917,89160.0,89151.0,0.05613188]
[1769550693958,0.11138462,89159.0,89151.0,4.736e-05]
[1769550694160,0.11138462,89158.0,89151.0,4.736e-05]
[1769550694365,0.11138462,89157.0,89151.0,4.736e-05]
[1769550694572,0.04307917,89160.0,89151.0,4.736e-05]
[1769550694747,0.11138464,89159.0,89151.0,4.736e-05]
[1769550694887,0.11138464,89158.0,89151.0,4.736e-05]
[1769550695132,0.11138464,89157.0,89151.0,4.736e-05]
[1769550695338,0.04307917,89160.0,89151.0,4.736e-05]
[1769550695537,0.1113846,89159.0,89151.0,4.736e-05]
[1769550695753,0.1113846,89158.0,89151.0,4.736e-05]
[1769550695959,0.08224213,89165.0,89151.0,4.736e-05]
[1769550695960,0.1113846,89157.0,89151.0,4.736e-05]
[1769550696175,0.08224213,89165.0,89151.0,0.05613147]
[1769550696375,0.11138714,89164.0,89151.0,0.05613147]
[1769550696682,0.11138714,89163.0,89151.0,0.05613147]
[1769550696891,0.11138714,89162.0,89151.0,0.05613147]
[1769550697091,0.08224213,89165.0,89151.0,0.05613147]
[1769550697092,0.11138714,89161.0,89152.0,0.05608373]
[1769550697313,0.11138714,89160.0,89151.0,0.05613147]
[1769550697536,0.12082324,89165.0,89151.0,0.05613147]
[1769550697760,0.1113746,89164.0,89151.0,0.05613147]
[1769550697932,0.1113746,89163.0,89151.0,0.05613147]
[1769550698129,0.1113746,89162.0,89151.0,0.05613147]
[1769550698316,0.1113746,89161.0,89152.0,0.05608384]
[1769550698517,0.1113746,89160.0,89151.0,0.05613147]
[1769550698718,0.12082324,89165.0,89151.0,0.05613147]
[1769550698961,0.11137505,89164.0,89152.0,0.05608398]
[1769550699288,0.12082324,89165.0,89152.0,0.05608398]
[1769550699289,0.11137505,89163.0,89152.0,0.05608398]
[1769550699411,0.11137505,89162.0,89151.0,4.736e-05]
[1769550699616,0.11137505,89161.0,89151.0,4.736e-05]
[1769550699839,0.11137505,89160.0,89151.0,4.736e-05]
[1769550700086,0.12082324,89165.0,89151.0,4.736e-05]
[1769550700251,0.1113724,89164.0,89151.0,4.736e-05]
[1769550700450,0.1113724,89163.0,89151.0,4.736e-05]
[1769550700662,0.1113724,89162.0,89151.0,4.736e-05]
[1769550700835,0.12082324,89165.0,89151.0,4.736e-05]
[1769550700836,0.1113724,89161.0,89151.0,4.736e-05]
[1769550701044,0.1113724,89160.0,89151.0,4.736e-05]
[1769550701272,0.12082324,89165.0,89151.0,4.736e-05]
[1769550701436,0.11136853,89164.0,89151.0,4.736e-05]
[1769550701641,0.11136853,89163.0,89151.0,4.736e-05]
[1769550701836,0.11136853,89162.0,89151.0,0.05613193]
[1769550702094,0.11136853,89161.0,89154.0,0.05608226]
[1769550702390,0.11136853,89160.0,89155.0,0.05608203]
[1769550702665,0.12082324,89165.0,89155.0,0.05608203]
[1769550702861,0.11136685,89164.0,89154.0,0.05608226]
[1769550702983,0.11136685,89163.0,89154.0,0.05608226]
[1769550703188,0.13402444,89174.0,89154.0,0.05608226]
[1769550703189,0.0001942,89174.0,89163.0,0.05607682]
[1769550703389,0.0001942,89174.0,89163.0,0.05607668]
[1769550703815,0.0001942,89174.0,89160.0,0.26463089]
[1769550704344,0.0001942,89174.0,89164.0,0.05607629]
[1769550704709,0.0001942,89174.0,89164.0,0.05607591]
[1769550704899,0.0001942,89174.0,89165.0,0.05607559]
[1769550705303,0.0001942,89174.0,89166.0,0.05607517]
[1769550705496,0.0001942,89174.0,89164.0,0.05607623]
[1769550705755,0.0001942,89174.0,89165.0,0.05607564]
[1769550705964,0.0001942,89174.0,89165.0,0.05599698]
[1769550706733,0.26463089,89190.0,89164.0,0.05607519]
[1769550706734,0.03633201,89188.0,89178.0,0.05606726]
[1769550706931,0.22097205,89195.0,89166.0,0.1152]
[1769550706932,0.0002223,89185.0,89175.0,0.05606952]
[1769550707130,0.0002223,89185.0,89183.0,0.05606449]
[1769550707589,0.0002223,89185.0,89184.0,0.05606386]
[1769550707792,0.0002223,89185.0,89184.0,0.05389381]
[1769550707958,0.0001513,89194.0,89188.0,0.05606097]
[1769550708148,0.0001513,89194.0,89185.0,0.05606323]
[1769550708347,0.0001513,89194.0,89184.0,0.0001406]
[1769550708550,0.0001513,89194.0,89186.0,0.0560622]
[1769550708756,0.0001513,89194.0,89187.0,0.05606171]
[1769550709271,0.0001513,89194.0,89184.0,0.0001406]
[1769550709471,0.0001513,89194.0,89181.0,0.05606575]
[1769550709678,0.0001513,89194.0,89184.0,0.05606352]
[1769550710218,0.0001513,89194.0,89185.0,0.05606287]
[1769550710417,0.0001513,89194.0,89186.0,0.05606248]
[1769550710621,0.0001513,89194.0,89184.0,0.05606344]
[1769550710940,0.0001513,89194.0,89185.0,0.05606317]
[1769550711222,0.0001513,89194.0,89185.0,0.05592773]
[1769550713467,0.0001513,89194.0,89183.0,0.05606386]
[1769550713468,0.0001513,89194.0,89184.0,0.0560636]
[1769550713797,0.0001513,89194.0,89181.0,4.736e-05]
[1769550714720,0.0001513,89194.0,89181.0,0.05611308]
[1769550716607,0.09009217,89194.0,89181.0,4.736e-05]
[1769550716894,0.1240239,89193.0,89181.0,4.736e-05]
[1769550717288,0.08994087,89192.0,89181.0,4.736e-05]
[1769550717503,0.08998823,89181.0,89162.0,0.22445958]
[1769550717701,0.03183419,89180.0,89171.0,0.05607142]
[1769550717856,0.03183419,89180.0,89170.0,0.05607258]
[1769550718054,0.03183419,89180.0,89171.0,0.05607159]
[1769550718460,0.03183419,89180.0,89173.0,0.05607054]
[1769550718887,0.03183419,89180.0,89173.0,0.05607051]
[1769550719647,0.03183419,89180.0,89171.0,0.05607182]
[1769550719850,0.03177419,89180.0,89170.0,0.05607261]
[1769550720495,0.02730583,89176.0,89162.0,0.05628644]
[1769550720717,0.26463089,89180.0,89162.0,0.05628644]
[1769550720718,0.08994087,89173.0,89162.0,0.05628644]
[1769550720932,0.02730583,89172.0,89164.0,0.05607582]
[1769550721342,0.02730583,89172.0,89165.0,0.05607574]
[1769550721550,0.02730583,89172.0,89162.0,0.00020914]
[1769550721999,0.02730583,89172.0,89162.0,0.05628646]
[1769550722838,0.02730583,89172.0,89163.0,0.05607698]
[1769550723091,0.02730583,89172.0,89162.0,0.05628646]
[1769550723439,0.02730583,89172.0,89163.0,0.05607706]
[1769550724358,0.02730583,89172.0,89162.0,0.00020914]
[1769550724765,0.1172467,89172.0,89162.0,0.00020914]
[1769550724967,0.26463089,89180.0,89162.0,0.00020914]
[1769550725231,0.0001513,89194.0,89150.0,0.0560847]
[1769550725232,0.00999999,89161.0,89150.0,0.0560847]
[1769550725401,0.02315558,89160.0,89153.0,0.00024059]
[1769550725679,0.00878219,89161.0,89149.0,0.1152]
[1769550725680,0.11309645,89158.0,89149.0,0.1152]
[1769550725887,0.11322777,89158.0,89152.0,0.05608368]
[1769550726092,0.11322777,89158.0,89153.0,0.05608334]
[1769550726093,0.09007219,89158.0,89153.0,0.05608334]
[1769550726308,0.0002308,89187.0,89158.0,0.00108648]
[1769550726309,0.08994087,89167.0,89158.0,0.00108648]
[1769550726511,0.08994087,89173.0,89162.0,0.05607745]
[1769550726927,0.0002308,89187.0,89165.0,0.05607549]
[1769550726928,0.08994087,89186.0,89165.0,0.05607549]
[1769550727139,0.02315558,89183.0,89162.0,0.05607709]
[1769550727351,0.0001317,89186.0,89155.0,0.22432687]
[1769550727352,0.26463089,89172.0,89155.0,0.05608153]
[1769550727557,0.02315558,89170.0,89156.0,0.05608114]
[1769550727765,0.08994087,89167.0,89156.0,0.05608114]
[1769550727886,0.08994087,89166.0,89150.0,0.37983089]
[1769550728097,0.08994087,89166.0,89151.0,0.05608462]
[1769550728477,0.08994087,89166.0,89154.0,0.05608233]
[1769550729117,0.08994087,89166.0,89155.0,0.05608178]
[1769550729553,0.08994087,89166.0,89153.0,0.05608295]
[1769550729775,0.08994087,89166.0,89154.0,0.0560827]
[1769550730002,0.08994087,89166.0,89155.0,0.05608201]
[1769550730614,0.08994087,89164.0,89151.0,0.05608351]
[1769550730815,0.08100486,89164.0,89153.0,0.05608289]
[1769550731142,0.08994087,89162.0,89153.0,0.05608289]
[1769550732034,0.08994087,89162.0,89153.0,0.05608334]
[1769550732236,0.08994087,89162.0,89150.0,0.1152]
[1769550732418,0.08994087,89162.0,89156.0,0.05608091]
[1769550733137,0.08994087,89162.0,89155.0,0.05608185]
[1769550733338,0.08994087,89162.0,89156.0,0.05608129]
[1769550733536,0.08994087,89162.0,89155.0,0.05608185]
[1769550736664,0.08994087,89162.0,89154.0,0.05608168]
[1769550737248,0.08994087,89162.0,89150.0,0.1152]
[1769550737455,0.08994087,89162.0,89152.0,0.0560839]
[1769550737658,0.08994087,89162.0,89153.0,0.05608292]
[1769550739676,0.08994087,89162.0,89147.0,0.224348]
[1769550739894,0.08994087,89162.0,89149.0,0.05608525]
[1769550740084,0.26463089,89170.0,89157.0,0.05608053]
[1769550740316,0.08994087,89169.0,89158.0,0.05607999]
[1769550740521,0.08994087,89169.0,89159.0,0.05607946]
[1769550740944,0.02315558,89175.0,89163.0,0.05607666]
[1769550741075,0.08994087,89179.0,89161.0,0.02344345]
[1769550741413,0.02315558,89183.0,89163.0,0.02344345]
[1769550741414,0.11112679,89178.0,89163.0,0.02344345]
[1769550741615,0.26463089,89180.0,89163.0,0.02344345]
[1769550741616,0.08994087,89177.0,89163.0,0.02344345]
[1769550748975,0.08994087,89177.0,89155.0,0.20262867]
[1769550749265,0.08742126,89169.0,89156.0,0.02278004]
[1769550749459,0.08742126,89169.0,89158.0,0.05607988]
[1769550749908,0.08742126,89169.0,89160.0,0.05607873]
[1769550750539,0.08742126,89169.0,89159.0,0.05607952]
[1769550751050,0.08742126,89169.0,89160.0,0.05607867]
[1769550752014,0.08742126,89169.0,89159.0,0.05607897]
[1769550752969,0.08742126,89169.0,89156.0,0.07886097]
[1769550753367,0.08742126,89169.0,89156.0,0.02278004]
[1769550753526,0.08742126,89169.0,89150.0,0.26455624]
[1769550753730,0.08742126,89169.0,89155.0,0.05608194]
[1769550755092,0.02414824,89168.0,89154.0,0.05608151]
[1769550755225,0.08742126,89167.0,89154.0,0.05608151]
[1769550756652,0.08742126,89167.0,89155.0,0.05608197]
[1769550757462,0.08742126,89167.0,89150.0,0.02278004]
[1769550757648,0.08742126,89167.0,89157.0,0.05608045]
[1769550757845,0.08742126,89167.0,89156.0,0.05608114]
[1769550759432,0.08742126,89167.0,89155.0,0.05608209]
[1769550759832,0.02414824,89167.0,89156.0,0.0560811]
[1769550760073,0.08742126,89166.0,89156.0,0.0560811]
[1769550760575,0.08742126,89166.0,89157.0,0.05608079]